bitfinex/quotes_BTCUSD_20250518
["timestamp","ask_amount","ask_price","bid_price","bid_amount"]
[1747556111628,0.94904744,103900.0,103890.0,0.39720365]
[1747556111815,0.83235746,103900.0,103890.0,0.39720365]
[1747556113502,0.83235746,103900.0,103890.0,0.39420365]
[1747556113698,1.02603746,103900.0,103890.0,0.39620365]
[1747556114756,1.14272744,103900.0,103890.0,0.39620365]
[1747556115183,1.02603746,103900.0,103890.0,0.39620365]
[1747556117102,1.02603746,103900.0,103890.0,0.38704727]
[1747556117459,0.83235746,103900.0,103890.0,0.38704727]
[1747556117779,1.02595746,103900.0,103890.0,0.38704727]
[1747556118809,1.00795746,103900.0,103890.0,0.38704727]
[1747556120031,1.00895746,103900.0,103890.0,0.39404727]
[1747556121207,1.12564744,103900.0,103890.0,0.39404727]
[1747556124222,1.00895746,103900.0,103890.0,0.39404727]
[1747556124372,1.20251746,103900.0,103890.0,0.39404727]
[1747556124610,1.00899746,103900.0,103890.0,0.39404727]
[1747556124812,0.81535746,103900.0,103890.0,0.39404727]
[1747556125015,1.00899746,103900.0,103890.0,0.39404727]
[1747556125653,1.12568744,103900.0,103890.0,0.39404727]
[1747556126275,1.22299684,103900.0,103890.0,0.39404727]
[1747556126627,1.12568744,103900.0,103890.0,0.39404727]
[1747556127441,1.12568744,103900.0,103890.0,0.39204727]
[1747556128086,1.12468744,103900.0,103890.0,0.38504727]
[1747556128297,6.68969842,103900.0,103890.0,0.38604727]
[1747556128540,6.57400844,103900.0,103890.0,0.38604727]
[1747556128743,6.77800782,103900.0,103890.0,0.38604727]
[1747556129062,6.37036844,103900.0,103890.0,0.38604727]
[1747556129488,6.75752844,103900.0,103890.0,0.38604727]
[1747556131649,5.67576844,103900.0,103890.0,0.38604727]
[1747556131835,0.80081661,103900.0,103890.0,0.38604727]
[1747556132044,1.18797661,103900.0,103890.0,0.38604727]
[1747556132244,1.20251746,103900.0,103890.0,0.38604727]
[1747556132653,1.31920744,103900.0,103890.0,0.38604727]
[1747556135270,0.93204744,103900.0,103890.0,0.38604727]
[1747556135472,1.31916744,103900.0,103890.0,0.38604727]
[1747556139906,1.08578748,103900.0,103890.0,0.38604727]
[1747556140091,1.32916744,103900.0,103890.0,0.38604727]
[1747556140476,1.33891389,103900.0,103890.0,0.38604727]
[1747556147720,6.19932487,103900.0,103890.0,0.38604727]
[1747556148474,6.08263489,103900.0,103890.0,0.38604727]
[1747556149042,6.08247489,103900.0,103890.0,0.38604727]
[1747556149371,0.95179389,103900.0,103890.0,0.38604727]
[1747556149574,1.33843389,103900.0,103890.0,0.38604727]
[1747556149815,1.32843389,103900.0,103890.0,0.38604727]
[1747556150041,0.98843389,103900.0,103890.0,0.38604727]
[1747556150197,1.32843389,103900.0,103890.0,0.38604727]
[1747556151522,1.31389304,103900.0,103890.0,0.38604727]
[1747556151948,0.81290391,103900.0,103890.0,0.38604727]
[1747556152148,1.31619389,103900.0,103890.0,0.38604727]
[1747556153034,0.81290391,103900.0,103890.0,0.38604727]
[1747556153226,0.51803393,103900.0,103890.0,0.41754727]
[1747556153385,0.97472391,103900.0,103890.0,0.41754727]
[1747556153586,0.63472391,103900.0,103890.0,0.41754727]
[1747556153785,0.97472391,103900.0,103890.0,0.38604727]
[1747556153963,1.15581389,103900.0,103890.0,0.38604727]
[1747556155397,1.27250387,103900.0,103890.0,0.38604727]
[1747556155625,1.15581389,103900.0,103890.0,0.38604727]
[1747556158150,0.92243393,103900.0,103890.0,0.38604727]
[1747556158323,1.15581389,103900.0,103890.0,0.38604727]
[1747556158771,1.18285416,103900.0,103890.0,0.38604727]
[1747556160139,0.9494742,103900.0,103890.0,0.38604727]
[1747556160351,1.18285416,103900.0,103890.0,0.38604727]
[1747556160771,0.33721335,103900.0,103890.0,0.38604727]
[1747556160988,0.62018306,103900.0,103890.0,0.38604727]
[1747556161186,0.84349308,103900.0,103890.0,0.38604727]
[1747556161409,0.96018306,103900.0,103890.0,0.38604727]
[1747556161595,0.96018306,103900.0,103890.0,0.41864727]
[1747556161596,0.76686306,103900.0,103890.0,0.41864727]
[1747556161825,0.76686306,103900.0,103890.0,0.62078414]
[1747556162136,0.52261923,103900.0,103890.0,0.6731348]
[1747556162338,0.52261923,103900.0,103890.0,0.6827599]
[1747556162578,0.53225531,103900.0,103890.0,0.6827599]
[1747556162808,0.52263142,103900.0,103890.0,0.67313499]
[1747556163032,0.12718182,103900.0,103890.0,0.7015592]
[1747556163730,0.13680627,103900.0,103890.0,0.7015592]
[1747556164203,0.48643081,103900.0,103890.0,0.7015592]
[1747556164666,0.6692997,103900.0,103890.0,0.69193429]
[1747556164881,0.6692997,103900.0,103890.0,0.70155929]
[1747556166742,0.66926436,103900.0,103890.0,0.69193429]
[1747556171199,0.65964,103900.0,103890.0,0.6823091]
[1747556172140,0.65964,103900.0,103890.0,0.69193438]
[1747556173692,0.65005117,103900.0,103890.0,0.69193438]
[1747556174388,0.65005117,103900.0,103890.0,0.65883438]
[1747556175787,0.65957908,103900.0,103890.0,0.65883438]
[1747556177377,0.65957908,103900.0,103890.0,0.6492091]
[1747556177646,0.64995463,103900.0,103890.0,0.42782138]
[1747556177842,0.8181548,103900.0,103890.0,0.42782138]
[1747556178192,0.8181548,103900.0,103890.0,0.39522138]
[1747556180726,0.8494548,103900.0,103890.0,0.39522138]
[1747556181225,0.8181548,103900.0,103890.0,0.39522138]
[1747556181707,0.8181548,103900.0,103890.0,0.16016066]
[1747556183329,0.75704444,103900.0,103890.0,0.16016066]
[1747556183538,0.63080218,103900.0,103890.0,0.16016066]
[1747556183749,0.74751653,103900.0,103890.0,0.16016066]
[1747556184167,0.63080218,103900.0,103890.0,0.19326066]
[1747556184589,0.63080218,103900.0,103890.0,0.16016066]
[1747556184837,0.74751653,103900.0,103890.0,0.16016066]
[1747556185040,0.81241653,103900.0,103890.0,0.16016066]
[1747556186299,0.78041653,103900.0,103890.0,0.16016066]
[1747556187575,0.74751653,103900.0,103890.0,0.16016066]
[1747556188792,0.81171653,103900.0,103890.0,0.16016066]
[1747556189226,0.92843088,103900.0,103890.0,0.16016066]
[1747556189505,0.94297173,103900.0,103890.0,0.16016066]
[1747556190912,1.13597173,103900.0,103890.0,0.16016066]
[1747556191355,0.82625738,103900.0,103890.0,0.16016066]
[1747556191590,1.01925738,103900.0,103890.0,0.16016066]
[1747556192291,0.82625738,103900.0,103890.0,0.16016066]
[1747556192743,0.78041653,103900.0,103890.0,0.16016066]
[1747556193957,0.63080218,103900.0,103890.0,0.17171112]
[1747556194179,0.74751653,103900.0,103890.0,0.19016066]
[1747556194375,0.74751653,103900.0,103890.0,0.16016066]
[1747556194932,0.64042681,103900.0,103890.0,0.40192291]
[1747556195338,0.1271821,103900.0,103890.0,0.47117301]
[1747556195551,0.13680673,103900.0,103890.0,0.4926481]
[1747556195759,0.13680673,103900.0,103890.0,0.5022732]
[1747556197657,0.02024825,103900.0,103890.0,0.51189811]
[1747556197905,0.03949706,103900.0,103890.0,0.51189811]
[1747556198092,0.02987261,103900.0,103890.0,0.51189811]
[1747556198586,0.03949706,103900.0,103890.0,0.51189811]
[1747556199216,0.03949706,103900.0,103890.0,0.52337648]
[1747556200262,0.0491216,103900.0,103890.0,0.52337648]
[1747556201575,0.02024825,103900.0,103890.0,0.52337648]
[1747556201803,0.02024788,103900.0,103890.0,0.52337648]
[1747556202035,0.02987196,103900.0,103890.0,0.52337648]
[1747556202904,0.03949641,103900.0,103890.0,0.52337648]
[1747556203121,0.03949632,103900.0,103890.0,0.52337648]
[1747556203356,0.02987196,103900.0,103890.0,0.52337648]
[1747556203567,0.22236474,103900.0,103890.0,0.28273903]
[1747556203792,0.23198993,103900.0,103890.0,0.28273903]
[1747556204418,0.23198993,103900.0,103890.0,0.29236459]
[1747556204653,0.23198993,103900.0,103890.0,0.28273903]
[1747556206020,0.001,103900.0,103890.0,0.50412591]
[1747556206225,0.0106238,103900.0,103890.0,0.50412591]
[1747556206705,0.001,103900.0,103890.0,0.50412591]
[1747556207117,0.0106238,103900.0,103890.0,0.50412591]
[1747556207317,0.0288702,103910.0,103900.0,0.25426557]
[1747556207507,0.0288702,103910.0,103900.0,0.89544158]
[1747556207685,0.22134445,103910.0,103900.0,0.86464168]
[1747556208030,0.22134445,103910.0,103900.0,0.87426594]
[1747556208455,0.22134445,103910.0,103900.0,0.90454259]
[1747556208667,0.22234445,103910.0,103900.0,0.90554259]
[1747556209855,0.22234445,103910.0,103900.0,0.86704526]
[1747556210106,0.22234445,103910.0,103900.0,0.92671842]
[1747556210578,0.48834505,103910.0,103900.0,0.64165248]
[1747556210828,0.47872162,103910.0,103900.0,0.64165248]
[1747556211144,1.09078923,103910.0,103900.0,0.64165248]
[1747556211410,1.43078923,103910.0,103900.0,0.64165248]
[1747556211643,1.33541682,103910.0,103900.0,0.64165248]
[1747556211890,1.33541682,103910.0,103900.0,0.621]
[1747556212807,0.94997682,103910.0,103900.0,0.621]
[1747556213027,1.33541682,103910.0,103900.0,0.621]
[1747556213473,6.02357929,103910.0,103900.0,0.621]
[1747556213695,6.32770103,103910.0,103900.0,0.61330174]
[1747556214116,6.32770103,103910.0,103900.0,0.60560348]
[1747556214537,6.32770103,103910.0,103900.0,0.59790522]
[1747556215590,6.32770103,103910.0,103900.0,0.59020696]
[1747556215998,6.32770103,103910.0,103900.0,0.5825087]
[1747556216200,6.32770103,103910.0,103900.0,0.57481044]
[1747556216544,6.14983086,103910.0,103900.0,0.56711218]
[1747556216836,6.32770103,103910.0,103900.0,0.56711218]
[1747556216986,6.32770103,103910.0,103900.0,0.55941392]
[1747556217486,6.42200172,103910.0,103900.0,0.55171566]
[1747556218242,6.32770103,103910.0,103900.0,0.55171566]
[1747556218863,6.30069929,103910.0,103900.0,0.55171566]
[1747556218999,5.91525929,103910.0,103900.0,0.55171566]
[1747556219413,6.30069929,103910.0,103900.0,0.55171566]
[1747556219617,1.17153829,103910.0,103900.0,0.55171566]
[1747556219827,6.47856946,103910.0,103900.0,0.55171566]
[1747556220017,6.61286091,103910.0,103900.0,0.5440164]
[1747556220305,6.58487886,103910.0,103900.0,0.0405164]
[1747556220423,0.28820264,103890.0,103880.0,0.07059846]
[1747556220634,5.87041338,103890.0,103880.0,0.07064575]
[1747556221560,5.87141338,103890.0,103880.0,0.07164575]
[1747556221788,1.12769238,103890.0,103880.0,0.07164575]
[1747556222421,0.74225238,103890.0,103880.0,0.07164575]
[1747556222571,0.93501238,103890.0,103880.0,0.07164575]
[1747556223633,1.22500178,103890.0,103880.0,0.07164575]
[1747556225454,6.30872278,103890.0,103880.0,0.00304729]
[1747556226283,6.30772278,103890.0,103880.0,0.00204729]
[1747556226660,6.31172278,103890.0,103880.0,0.00204729]
[1747556227294,6.31472278,103890.0,103880.0,0.00204729]
[1747556227471,6.32472278,103890.0,103880.0,0.00204729]
[1747556228911,0.5663434,103870.0,103860.0,0.002]
[1747556229119,1.29156297,103870.0,103860.0,0.002]
[1747556230119,1.29256297,103870.0,103860.0,0.002]
[1747556231187,1.31648079,103870.0,103860.0,0.002]
[1747556232480,1.31648079,103870.0,103860.0,0.00182317]
[1747556237922,0.192604,103840.0,103830.0,0.16760954]
[1747556238324,0.2214931,103840.0,103830.0,0.16711669]
[1747556238810,0.2311233,103840.0,103830.0,0.17674726]
[1747556239005,0.24075322,103840.0,103830.0,0.16711669]
[1747556239221,0.23212302,103840.0,103830.0,0.18651962]
[1747556239648,0.03951902,103840.0,103830.0,0.18651962]
[1747556239857,0.04914922,103840.0,103830.0,0.17881501]
[1747556240069,0.23212386,103840.0,103830.0,0.18381502]
[1747556240269,0.03951986,103840.0,103830.0,0.18188915]
[1747556240479,0.23212386,103840.0,103830.0,0.18381501]
[1747556240685,0.23212386,103840.0,103830.0,0.19151962]
[1747556241023,0.23212386,103840.0,103830.0,0.19818915]
[1747556242014,0.23212386,103840.0,103830.0,0.16929708]
[1747556242142,0.2128643,103840.0,103830.0,0.16262811]
[1747556242338,0.2128643,103840.0,103830.0,0.01427961]
[1747556242573,0.2032342,103840.0,103830.0,0.01427961]
[1747556243081,0.3005436,103840.0,103830.0,0.01427961]
[1747556243270,0.61887393,103840.0,103830.0,0.01427961]
[1747556243478,0.44100376,103840.0,103830.0,0.01427961]
[1747556244108,0.44100376,103840.0,103830.0,0.00514189]
[1747556245441,0.61887393,103840.0,103830.0,0.00514189]
[1747556245873,0.95887393,103840.0,103830.0,0.00514189]
[1747556246553,0.95787393,103840.0,103830.0,0.00514189]
[1747556246976,0.95887393,103840.0,103830.0,0.00014189]
[1747556247183,0.95887393,103840.0,103830.0,0.00214189]
[1747556249271,1.07445377,103840.0,103830.0,0.00214189]
[1747556249682,0.88181377,103840.0,103830.0,0.00214189]
[1747556249859,1.07445377,103840.0,103830.0,0.00214189]
[1747556250173,0.8965836,103840.0,103830.0,0.19476444]
[1747556250372,1.0891436,103840.0,103830.0,0.00214189]
[1747556250893,0.7039436,103840.0,103830.0,0.00214189]
[1747556251101,1.0891836,103840.0,103830.0,0.00214189]
[1747556251865,1.0584836,103840.0,103830.0,0.00214189]
[1747556252065,1.0584436,103840.0,103830.0,0.00214189]
[1747556252267,1.0894436,103840.0,103830.0,0.00214189]
[1747556254310,0.8658836,103840.0,103830.0,0.00214189]
[1747556255005,0.8973836,103840.0,103830.0,0.00214189]
[1747556255423,1.0893836,103840.0,103830.0,0.00214189]
[1747556255975,0.8968236,103840.0,103830.0,0.00214189]
[1747556256331,0.8968236,103840.0,103830.0,0.0040679]
[1747556256332,0.6399836,103840.0,103830.0,0.0040679]
[1747556256526,0.50281305,103840.0,103830.0,0.23225223]
[1747556256728,0.4931836,103840.0,103830.0,0.23032641]
[1747556256933,0.21289918,103840.0,103830.0,0.24958763]
[1747556257282,0.22252919,103840.0,103830.0,0.25108763]
[1747556257473,0.43439349,103840.0,103830.0,0.23995716]
[1747556257694,0.42476404,103840.0,103830.0,0.23032641]
[1747556257897,0.42476404,103840.0,103830.0,0.21402641]
[1747556258322,0.41513431,103840.0,103830.0,0.21402641]
[1747556258732,0.41513431,103840.0,103830.0,0.22319061]
[1747556260622,0.4055043,103840.0,103830.0,0.21355967]
[1747556260816,0.4387043,103840.0,103830.0,0.21355967]
[1747556262282,0.4387043,103840.0,103830.0,0.20392864]
[1747556262682,0.2773643,103840.0,103830.0,0.20392864]
[1747556262891,0.4603742,103840.0,103830.0,0.01130609]
[1747556263094,0.2677342,103840.0,103830.0,0.01130609]
[1747556263307,0.5576836,103840.0,103830.0,0.01130609]
[1747556263726,0.73555377,103840.0,103830.0,0.01130609]
[1747556263935,0.5576836,103840.0,103830.0,0.01130609]
[1747556265508,0.5576836,103840.0,103830.0,0.00214189]
[1747556266312,0.5576836,103840.0,103830.0,0.38737189]
[1747556266536,0.73555377,103840.0,103830.0,0.38737189]
[1747556267174,0.5576836,103840.0,103830.0,0.38737189]
[1747556267400,0.73555377,103840.0,103830.0,0.38737189]
[1747556269306,0.4290742,103840.0,103830.0,0.38737189]
[1747556269526,0.2364342,103840.0,103830.0,0.39654674]
[1747556269730,0.2364342,103840.0,103830.0,0.40617768]
[1747556269935,0.2032342,103840.0,103830.0,0.40617768]
[1747556271737,0.2032342,103840.0,103830.0,0.40617786]
[1747556272074,0.193604,103840.0,103830.0,0.40617786]
[1747556272977,0.224404,103840.0,103830.0,0.40617786]
[1747556273613,0.224404,103840.0,103830.0,0.39654674]
[1747556274208,0.6924134,103840.0,103830.0,0.39654674]
[1747556275896,1.06272357,103840.0,103830.0,0.39654674]
[1747556276098,1.06272357,103840.0,103830.0,0.38737189]
[1747556276302,1.07726442,103840.0,103830.0,0.38737189]
[1747556277144,0.6924134,103840.0,103830.0,0.38737189]
[1747556277346,0.8848534,103840.0,103830.0,0.38737189]
[1747556281303,1.06272357,103840.0,103830.0,0.38737189]
[1747556281540,0.7020436,103840.0,103830.0,0.58962538]
[1747556281789,1.0869636,103840.0,103830.0,0.38737189]
[1747556282495,0.8945236,103840.0,103830.0,0.39655667]
[1747556282707,0.71167352,103840.0,103830.0,0.608441]
[1747556282927,0.90415352,103840.0,103830.0,0.59881025]
[1747556283427,0.90415352,103840.0,103830.0,0.60844119]
[1747556283661,0.8945236,103840.0,103830.0,0.39655667]
[1747556283891,1.07239377,103840.0,103830.0,0.39655667]
[1747556285687,0.7020436,103840.0,103830.0,0.39655667]
[1747556285892,0.8638236,103840.0,103830.0,0.39655667]
[1747556286094,0.6713436,103840.0,103830.0,0.58917922]
[1747556286299,0.8638236,103840.0,103830.0,0.39655667]
[1747556286495,0.8959236,103840.0,103830.0,0.39655667]
[1747556287543,0.5559236,103840.0,103830.0,0.39655667]
[1747556289029,0.3634436,103840.0,103830.0,0.39655667]
[1747556289236,0.5559236,103840.0,103830.0,0.39655667]
[1747556300294,0.3634436,103840.0,103830.0,0.39655667]
[1747556300494,0.5557236,103840.0,103830.0,0.39655667]
[1747556301817,0.3634436,103840.0,103830.0,0.58917922]
[1747556301983,0.3634436,103840.0,103830.0,0.39655667]
[1747556302751,0.5557236,103840.0,103830.0,0.39655667]
[1747556305530,0.2661342,103840.0,103830.0,0.59881016]
[1747556305731,0.2661342,103840.0,103830.0,0.39655667]
[1747556306001,0.256504,103840.0,103830.0,0.59881025]
[1747556306494,0.256504,103840.0,103830.0,0.39655667]
[1747556308168,0.43437417,103840.0,103830.0,0.39655667]
[1747556312210,0.72396357,103840.0,103830.0,0.39655667]
[1747556317404,0.77981236,103840.0,103830.0,0.39655667]
[1747556320072,1.11981236,103840.0,103830.0,0.39655667]
[1747556321371,1.07874298,103840.0,103830.0,0.39655667]
[1747556321889,1.0884109,103840.0,103830.0,0.39655667]
[1747556324146,1.26651963,103840.0,103830.0,0.39655667]
[1747556325195,1.44088919,103840.0,103830.0,0.39655667]
[1747556325918,1.34357979,103840.0,103830.0,0.39655667]
[1747556326759,0.6938134,103840.0,103830.0,0.39655667]
[1747556327336,0.87192213,103840.0,103830.0,0.39655667]
[1747556329753,0.88153634,103840.0,103830.0,0.39655667]
[1747556330763,0.70342761,103840.0,103830.0,0.39655667]
[1747556330994,0.88153634,103840.0,103830.0,0.39655667]
[1747556332413,0.3334436,103840.0,103830.0,0.59881016]
[1747556332638,0.07392964,103840.0,103830.0,0.61807138]
[1747556332845,0.30505294,103840.0,103830.0,0.61807157]
[1747556333044,0.02025909,103840.0,103830.0,0.61807138]
[1747556333251,0.02988891,103840.0,103830.0,0.63437138]
[1747556333821,0.04914884,103840.0,103830.0,0.61807138]
[1747556337894,0.02988891,103840.0,103830.0,0.61807138]
[1747556338112,0.01062945,103840.0,103830.0,0.61807138]
[1747556338320,0.02025909,103840.0,103830.0,0.63437138]
[1747556338739,0.02988891,103840.0,103830.0,0.63437138]
[1747556339174,0.02988891,103840.0,103830.0,0.61807138]
[1747556339586,0.02988891,103840.0,103830.0,0.63437138]
[1747556340506,0.02988891,103840.0,103830.0,0.61807138]
[1747556343815,0.02988891,103840.0,103830.0,0.62954975]
[1747556344673,0.03951901,103840.0,103830.0,0.62954975]
[1747556344890,0.07211892,103840.0,103830.0,0.62954975]
[1747556345092,0.06248891,103840.0,103830.0,0.62954975]
[1747556345523,0.08435909,103840.0,103830.0,0.62954975]
[1747556345734,0.06248901,103840.0,103830.0,0.62954975]
[1747556345930,0.09398901,103840.0,103830.0,0.62954975]
[1747556346743,0.10361902,103840.0,103830.0,0.62954975]
[1747556349865,0.02025909,103840.0,103830.0,0.64485425]
[1747556350072,0.02025918,103840.0,103830.0,0.66115425]
[1747556350275,0.01062945,103840.0,103830.0,0.66115425]
[1747556350479,0.001,103840.0,103830.0,0.64485425]
[1747556350689,0.01062936,103840.0,103830.0,0.66115425]
[1747556350898,0.02025881,103840.0,103830.0,0.66115425]
[1747556351913,0.01062945,103840.0,103830.0,0.66115425]
[1747556352889,0.01062945,103840.0,103830.0,0.64967588]
[1747556353322,0.02025909,103840.0,103830.0,0.42184479]
[1747556353542,0.02025909,103840.0,103830.0,0.40554479]
[1747556354113,0.01062945,103840.0,103830.0,0.40554479]
[1747556354313,0.02025918,103840.0,103830.0,0.40554479]
[1747556355097,0.02025909,103840.0,103830.0,0.40554479]
[1747556356103,0.02025909,103840.0,103830.0,0.39024029]
[1747556357732,0.01062945,103840.0,103830.0,0.39024029]
[1747556357877,0.02025909,103840.0,103830.0,0.40654029]
[1747556358075,0.02025909,103840.0,103830.0,0.39024029]
[1747556359297,0.02025909,103840.0,103830.0,0.40172382]
[1747556361613,0.05025909,103840.0,103830.0,0.40172382]
[1747556361831,0.05025909,103840.0,103830.0,0.45172382]
[1747556362243,0.02025909,103840.0,103830.0,0.45172382]
[1747556363449,0.04382945,103840.0,103830.0,0.45172382]
[1747556363680,0.05345909,103840.0,103830.0,0.45172382]
[1747556364293,0.08585909,103840.0,103830.0,0.45172382]
[1747556364498,0.09548891,103840.0,103830.0,0.45172382]
[1747556364705,0.08585909,103840.0,103830.0,0.45172382]
[1747556365781,0.08585909,103840.0,103830.0,0.44024029]
[1747556365930,0.08585909,103840.0,103830.0,0.45554479]
[1747556366536,0.09548882,103840.0,103830.0,0.45554479]
[1747556366992,0.10511874,103840.0,103830.0,0.45554479]
[1747556367213,0.01062955,103840.0,103830.0,0.45554479]
[1747556367443,0.04122955,103840.0,103830.0,0.45554479]
[1747556367666,0.05085919,103840.0,103830.0,0.45554479]
[1747556368211,0.08195919,103840.0,103830.0,0.45554479]
[1747556368832,0.07232955,103840.0,103830.0,0.45554479]
[1747556369045,0.08195928,103840.0,103830.0,0.45554479]
[1747556369254,0.07232955,103840.0,103830.0,0.45554479]
[1747556370346,0.07232945,103840.0,103830.0,0.45554479]
[1747556370788,0.0627,103840.0,103830.0,0.45554479]
[1747556371220,0.07232945,103840.0,103830.0,0.45554479]
[1747556372300,0.0627,103840.0,103830.0,0.45554479]
[1747556374425,0.0316,103840.0,103830.0,0.45554479]
[1747556374630,0.001,103840.0,103830.0,0.55285419]
[1747556377317,0.0316,103840.0,103830.0,0.74449419]
[1747556377750,0.001,103840.0,103830.0,0.74449419]
[1747556378166,0.0316,103840.0,103830.0,0.74449419]
[1747556378967,0.001,103840.0,103830.0,0.76079419]
[1747556379251,0.001,103840.0,103830.0,1.11229419]
[1747556379860,0.0713276,103860.0,103830.0,1.08340203]
[1747556380097,0.08095529,103860.0,103850.0,0.22147215]
[1747556380307,0.0713276,103860.0,103850.0,0.22147215]
[1747556380508,0.08095538,103860.0,103850.0,0.83233215]
[1747556380727,0.08095538,103860.0,103850.0,0.85682143]
[1747556380930,0.0713276,103860.0,103850.0,0.85682143]
[1747556381135,0.08095538,103860.0,103850.0,0.85682143]
[1747556381342,0.0723276,103860.0,103850.0,0.85682143]
[1747556381549,0.08195538,103860.0,103850.0,0.85682143]
[1747556381755,0.0713276,103860.0,103850.0,0.85682143]
[1747556382171,0.0713276,103860.0,103850.0,0.85782143]
[1747556382756,0.0617,103860.0,103850.0,0.85782143]
[1747556385533,0.0617,103860.0,103850.0,0.95513083]
[1747556387391,0.0617,103860.0,103850.0,1.14669083]
[1747556387828,0.0617,103860.0,103850.0,1.15814198]
[1747556388330,0.07132769,103860.0,103850.0,1.06079258]
[1747556388542,0.08095557,103860.0,103850.0,0.86927258]
[1747556388758,0.07132769,103860.0,103850.0,0.86927258]
[1747556389100,0.07132751,103860.0,103850.0,0.86927258]
[1747556390658,0.07132751,103860.0,103850.0,0.85396808]
[1747556395550,0.06768751,103860.0,103850.0,0.85396808]
[1747556397800,0.08694299,103860.0,103850.0,0.85396808]
[1747556398017,0.08694289,103860.0,103850.0,0.85396808]
[1747556398132,0.08694289,103860.0,103850.0,0.84433946]
[1747556398337,0.08694289,103860.0,103850.0,0.86359679]
[1747556398338,0.10619911,103860.0,103850.0,0.86359679]
[1747556398541,0.10619902,103860.0,103850.0,0.86359679]
[1747556398860,0.10619892,103860.0,103850.0,0.86359679]
[1747556400223,0.08694289,103860.0,103850.0,0.86359679]
[1747556405255,0.08694289,103860.0,103850.0,0.87890129]
[1747556405705,0.07731511,103860.0,103850.0,0.87890129]
[1747556408209,0.07731511,103860.0,103850.0,0.86745014]
[1747556410312,0.06768751,103860.0,103850.0,0.86745014]
[1747556410527,0.05806,103860.0,103850.0,0.86745014]
[1747556410766,0.0306,103860.0,103850.0,0.86745014]
[1747556410896,0.0638,103860.0,103850.0,0.86745014]
[1747556411276,0.0638,103860.0,103850.0,0.85214564]
[1747556416126,0.0637,103870.0,103860.0,0.22145082]
[1747556416302,0.0637,103870.0,103860.0,0.83227082]
[1747556416513,0.07332667,103870.0,103860.0,0.83227082]
[1747556416887,0.07332658,103870.0,103860.0,0.83227082]
[1747556417093,0.0637,103870.0,103860.0,0.83227082]
[1747556417298,0.0647,103870.0,103860.0,0.83227082]
[1747556417477,0.07432667,103870.0,103860.0,0.83227082]
[1747556417678,0.07432667,103870.0,103860.0,0.86823779]
[1747556417864,0.0647,103870.0,103860.0,0.86823779]
[1747556418075,0.07432658,103870.0,103860.0,0.86823779]
[1747556418277,0.08395335,103870.0,103860.0,0.86823779]
[1747556418705,0.07432658,103870.0,103860.0,0.86823779]
[1747556418899,0.07532658,103870.0,103860.0,0.86923779]
[1747556419862,0.08495335,103870.0,103860.0,0.86923779]
[1747556421155,0.08495325,103870.0,103860.0,0.86923779]
[1747556421369,0.09458011,103870.0,103860.0,0.86923779]
[1747556423392,0.07532658,103870.0,103860.0,0.86923779]
[1747556423590,0.08495335,103870.0,103860.0,0.86923779]
[1747556423792,0.0657,103870.0,103860.0,0.86923779]
[1747556424517,0.0657,103870.0,103860.0,0.91923779]
[1747556424868,0.07532667,103870.0,103860.0,0.91923779]
[1747556425067,0.07532658,103870.0,103860.0,0.91923779]
[1747556426497,0.0657,103870.0,103860.0,0.91923779]
[1747556426824,0.0657,103870.0,103860.0,0.90775971]
[1747556427225,0.0657,103870.0,103860.0,0.91752859]
[1747556428093,0.0354,103870.0,103860.0,0.91752859]
[1747556428499,0.0677,103870.0,103860.0,0.91752859]
[1747556429006,0.0667,103870.0,103860.0,0.61652859]
[1747556429209,0.0667,103870.0,103860.0,0.8090955]
[1747556429423,0.0667,103870.0,103860.0,0.8110955]
[1747556429835,0.0667,103870.0,103860.0,0.84097941]
[1747556430070,0.0667,103870.0,103860.0,0.8256753]
[1747556433096,0.0667,103870.0,103860.0,0.83714006]
[1747556435029,0.07632667,103870.0,103860.0,0.83714006]
[1747556435234,0.07632658,103870.0,103860.0,0.83714006]
[1747556437236,0.0667,103870.0,103860.0,0.83714006]
[1747556437592,0.0667,103870.0,103860.0,0.93444946]
[1747556437803,0.0344,103870.0,103860.0,0.93444946]
[1747556438038,0.0337,103870.0,103860.0,1.12580946]
[1747556438271,0.0663,103870.0,103860.0,1.12580946]
[1747556439892,0.0663,103870.0,103860.0,1.1143447]
[1747556440087,0.0663,103870.0,103860.0,1.12964881]
[1747556444783,0.0663,103870.0,103860.0,0.93828881]
[1747556445219,0.07592658,103870.0,103860.0,0.93828881]
[1747556445690,0.10480762,103870.0,103860.0,0.85060719]
[1747556445928,0.30698331,103870.0,103860.0,0.81195487]
[1747556446135,0.40454491,103870.0,103860.0,0.81195478]
[1747556446336,0.40454491,103870.0,103860.0,0.82158284]
[1747556446488,0.40454491,103870.0,103860.0,0.83121081]
[1747556446875,0.28772996,103870.0,103860.0,0.83121081]
[1747556447089,0.28772996,103870.0,103860.0,0.84083869]
[1747556447285,0.28772996,103870.0,103860.0,0.85230888]
[1747556447493,0.28544996,103870.0,103860.0,0.85230888]
[1747556448108,0.28544996,103870.0,103860.0,0.86193666]
[1747556449160,0.28544987,103870.0,103860.0,0.86193666]
[1747556449700,0.28544987,103870.0,103860.0,0.86193619]
[1747556450771,0.28544987,103870.0,103860.0,0.8523085]
[1747556451752,0.28544987,103870.0,103860.0,0.6212299]
[1747556451972,0.39263778,103870.0,103860.0,0.6212299]
[1747556452380,0.27582283,103870.0,103860.0,0.6212299]
[1747556452581,0.39263778,103870.0,103860.0,0.6212299]
[1747556454197,0.27582283,103870.0,103860.0,0.6212299]
[1747556454491,0.27582283,103870.0,103860.0,0.60592579]
[1747556454691,0.46742283,103870.0,103860.0,0.60592579]
[1747556458613,0.46742283,103870.0,103860.0,0.35595057]
[1747556460810,0.46742283,103870.0,103860.0,0.34448038]
[1747556461774,0.27582283,103870.0,103860.0,0.34448038]
[1747556462117,0.58391778,103870.0,103860.0,0.34448038]
[1747556462521,0.46710283,103870.0,103860.0,0.34448038]
[1747556462685,0.58391778,103870.0,103860.0,0.34448038]
[1747556464068,0.57429064,103870.0,103860.0,0.34448038]
[1747556465107,0.58391768,103870.0,103860.0,0.34448038]
[1747556465401,0.39263768,103870.0,103860.0,0.34448038]
[1747556465712,0.46710273,103870.0,103860.0,0.34448038]
[1747556468974,0.58391768,103870.0,103860.0,0.34448038]
[1747556469649,0.58391768,103870.0,103860.0,0.35595057]
[1747556470139,0.57429064,103870.0,103860.0,0.35595057]
[1747556471044,0.78841499,103870.0,103860.0,0.35595057]
[1747556471264,0.9399002,103870.0,103860.0,0.35595057]
[1747556471487,0.9399002,103870.0,103860.0,0.30595057]
[1747556471880,1.39671515,103870.0,103860.0,0.30595057]
[1747556472433,1.39671515,103870.0,103860.0,0.2852956]
[1747556473478,1.39599515,103870.0,103860.0,0.2822956]
[1747556473711,1.411536,103870.0,103860.0,0.2832956]
[1747556474908,1.412536,103870.0,103860.0,0.2832956]
[1747556476075,1.45230304,103870.0,103860.0,0.2832956]
[1747556476326,1.412536,103870.0,103860.0,0.2832956]
[1747556479960,6.156257,103870.0,103860.0,0.2499956]
[1747556480172,6.27307195,103870.0,103860.0,0.2499956]
[1747556480367,6.156257,103870.0,103860.0,0.2499956]